Cogmind - Beta 14 @@@ ROGUE MODE // 2024.08.23 @ 11:45:35 Player: H3-RMN Result: Destroyed by E9-PYZ(R) with Subdweller Beam Cannon Performance ------------- Evolutions (0) 0 Regions Visited (3) 600 Robots Destroyed (18) 90 Value Destroyed (412) 412 Prototype IDs (0) 0 Alien Tech Used (0) 0 Bonus (0) 0 TOTAL SCORE: 1102 Bonus ------- None Cogmind --------- Core Integrity 0/250 Matter 288/300 Energy 150/200 System Corruption 0% Temperature Cool (9) Movement Treading (240) Ox1 Location -10/Subcaves Parts ------- > --- POWER (1) -------- Subdweller Power Source > --- PROPULSION (2) --- Light Treads > --- UTILITY (2) ------ Large Storage Unit Subdweller Optics > --- WEAPON (2) ------- Light Assault Rifle Light Assault Rifle > --- INVENTORY (15) --- Light Ion Engine Wheel Compact Wheel Huge Storage Unit Large Matter Pod (150) Scrap Shield EM Pulse Gun Small Laser Light Assault Rifle Light Assault Rifle Subdweller Shrapnel Launcher Mining Laser Multitool Peak State ------------ > --- POWER ------------ Subdweller Power Source > --- PROPULSION ------- Light Treads Light Treads > --- UTILITY ---------- Large Storage Unit Subdweller Optics > --- WEAPON ----------- Subdweller Laser Light Assault Rifle > --- INVENTORY -------- Light Ion Engine Wheel Compact Wheel Huge Storage Unit Large Matter Pod EM Pulse Gun Small Laser Light Assault Rifle Light Assault Rifle Light Assault Rifle Mining Laser [Rating: 11] Favorites ----------- Power Ion Engine Engine Ion Engine Propulsion Light Treads Treads Light Treads Wheel Wheel Utility Large Storage Unit Device Heat Sink Storage Large Storage Unit Protection Light Armor Plating Weapon Light Assault Rifle Energy Gun Subdweller Laser Ballistic Gun Light Assault Rifle Build | -11 -10 -10 -10 ------- Run | Yrd Mat Min Sub Slots Evolved . | . . . . Power . | . . . . Propulsion . | . . . . Utility . | . . . . Weapon . | . . . . Parts Attached 20 | 7 2 5 6 Power 2 | 1 . . 1 Engine 2 | 1 . . 1 Core . | . . . . Reactor . | . . . . Propulsion 5 | 2 1 1 1 Treads 3 | . 1 1 1 Leg . | . . . . Wheel 2 | 2 . . . Hover . | . . . . Flight . | . . . . Utility 7 | 2 . 3 2 Device 3 | 1 . 1 1 Storage 3 | 1 . 1 1 Processor . | . . . . Hackware . | . . . . Protection 1 | . . 1 . Artifact . | . . . . Weapon 6 | 2 1 1 2 Energy Gun 1 | . . . 1 Energy Cannon . | . . . . Ballistic Gun 5 | 2 1 1 1 Ballistic Cannon . | . . . . Launcher . | . . . . Special Weapon . | . . . . Impact Weapon . | . . . . Slashing Weapon . | . . . . Piercing Weapon . | . . . . Special Melee Weapon . | . . . . Unidentified Prototypes . | . . . . Parts Lost 7 | . . 3 4 Power . | . . . . Propulsion 3 | . . 1 2 Utility 2 | . . 1 1 Weapon 2 | . . 1 1 Highest Loss Streak 2 | . . 2 2 To Critical Strikes . | . . . . Average Slot Usage (%) 99 | . 100 99 97 Engine 14 | . 14 14 14 Treads 24 | . 1 27 27 Wheel 3 | . 26 . . Device 5 | . 14 3 5 Storage 15 | . 14 14 20 Protection 6 | . . 9 . Energy Gun 1 | . . . 4 Ballistic Gun 26 | . 28 27 23 Peak Build Rating 11 | 7 7 8 11 Average Rating 7 | 5 6 7 8 On Entrance 5 | . 7 7 8 Naked Turns . | . . . . Heaviest Build 32 | 14 14 31 32 Greatest Support 40 | 20 20 40 40 Greatest Overweight (x) 1 | . 1 1 . Average Overweight (x) . | . . . . Largest Inventory Capacity 15 | 8 8 15 15 Average Capacity 13 | 7 8 14 15 Most Carried 15 | 5 8 12 15 Average Carried 9 | 3 6 10 11 Final Capacity 15 | 8 8 15 15 Final Carried 14 | 5 8 11 14 Class Distribution -------------------- 100% | Mutant Dominant Class ---------------- Mutant | -10/Materials Mutant | -10/Mines Mutant | -10/Subcaves Resources | -11 -10 -10 -10 ----------- Run | Yrd Mat Min Sub Matter Collected 806 | 318 148 289 51 Remotely . | . . . . Salvage Created 650 | 83 278 235 54 Parts 44 | 7 20 12 5 Haulers Intercepted 1 | . 1 . . Recyclers Shooed 1 | . . 1 . Parts Field Recycled . | . . . . Retrieved Matter . | . . . . Parts Self-Destructed 4 | . . . 4 Prevented . | . . . . Kills | -11 -10 -10 -10 ------- Run | Yrd Mat Min Sub Combat Hostiles Destroyed 12 | . 7 4 1 Guns 12 | . 7 4 1 Classes Destroyed 7 | 2 4 . 1 Tunneler 2 | 2 . . . Hauler 1 | . 1 . . Recycler 2 | 1 . 1 . Operator 1 | . 1 . . Swarmer 3 | . 3 . . Grunt 8 | . 4 4 . Subdweller 1 | . . . 1 Best Kill Streak 4 | 3 4 2 1 Combat Bots Only 4 | . 4 2 1 Max Kills in Single Turn 1 | 1 1 1 1 Gunslinging . | . . . . Exploded . | . . . . Melee . | . . . . Uniques/NPCs Destroyed . | . . . . Combat | -11 -10 -10 -10 -------- Run | Yrd Mat Min Sub Hostile Shots Fired 94 | . 33 42 19 Missed 16 | . 7 8 1 Damage Taken 1178 | . 261 459 458 Core 250 | . 31 73 146 Absorbed by Shields . | . . . . Core Remaining (%) 100 | 100 . . . Volleys Fired 84 | 12 32 30 10 Largest 2 | 2 2 2 2 Hottest 80 | 40 40 40 80 Shots Fired 167 | 24 64 59 20 Gun 167 | 24 64 59 20 Cannon . | . . . . Launcher . | . . . . Special . | . . . . Kinetic 161 | 24 64 59 14 Thermal 6 | . . . 6 Explosive . | . . . . Electromagnetic . | . . . . Robot Hit Streak 29 | 4 8 9 29 Robot Miss Streak 7 | 2 7 3 . Penetration Max . | . . . . Secondary Targets 2 | . . 2 . Max Gunslinging Chain 1 | . . 1 . Shots Hit Robots 110 | 15 35 40 20 Core Hits 38 | 5 16 13 4 Critical Kills . | . . . . Critical Parts Destroyed . | . . . . Critical Strikes 1 | . . . 1 Destroy 1 | . . . 1 Melee Attacks . | . . . . Impact . | . . . . Slashing . | . . . . Piercing . | . . . . Sneak Attacks . | . . . . Combat Hostiles . | . . . . Follow-up Attacks . | . . . . Damage Inflicted 1161 | 176 355 399 231 Guns 1161 | 176 355 399 231 Cannons . | . . . . Explosions . | . . . . Melee . | . . . . Ramming . | . . . . Kinetic 1037 | 176 355 399 107 Thermal 124 | . . . 124 Explosive . | . . . . Electromagnetic . | . . . . Impact . | . . . . Slashing . | . . . . Piercing . | . . . . Highest Corruption . | . . . . Average Corruption . | . . . . Corruption Purged . | . . . . Corruption Blocked . | . . . . Overload Shots . | . . . . Overflow Damage . | . . . . Projectiles . | . . . . Explosions . | . . . . Melee . | . . . . Knockbacks . | . . . . Impact . | . . . . Kinetic . | . . . . Secondary . | . . . . Self-Inflicted Damage . | . . . . Shots . | . . . . Rammed . | . . . . Targets Rammed . | . . . . Kicked . | . . . . Crushed . | . . . . Highest Temperature 49 | . 12 49 10 Average Temperature 13 | . 6 16 4 Received Heat Transfer 510 | . 87 306 117 Siege Activations . | . . . . Robots Corrupted . | . . . . Combat Hostiles . | . . . . Parts Fried . | . . . . Impact Corruptions . | . . . . Robots Melted . | . . . . Combat Hostiles . | . . . . Parts Melted . | . . . . Heat Transferred 150 | . . . 150 Parts Sabotaged . | . . . . Parts Stolen . | . . . . Parts Stripped . | . . . . Power Chain Reactions . | . . . . Alert | -11 -10 -10 -10 ------- Run | Yrd Mat Min Sub Peak Influence 217 | 15 217 134 . Initial 84 | . 9 84 . Average 59 | 3 138 49 . Maximum Alert Level 1 | . 1 . . Low Security (%) 96 | 100 78 100 . Level 1 3 | . 21 . . Level 2 . | . . . . Level 3 . | . . . . Level 4 . | . . . . Level 5 . | . . . . High Security . | . . . . Max Security . | . . . . Squads Dispatched 1 | . 1 . . Investigation . | . . . . Extermination . | . . . . Reinforcement 1 | . 1 . . Assault . | . . . . Garrison . | . . . . Intercept . | . . . . Searches Triggered . | . . . . Construction Impeded . | . . . . Haulers Reinforced . | . . . . Active Scanning Responses . | . . . . Cargo Convoy Interrupts . | . . . . Stealth | -11 -10 -10 -10 --------- Run | Yrd Mat Min Sub Distress Signals 1 | . 1 . . Communications Jammed . | . . . . Distress Signals . | . . . . Times Spotted 17 | . 10 4 3 Peak Tracking Total 5 | . 5 2 2 Tactical Retreats 1 | . 1 . . Traps | -11 -10 -10 -10 ------- Run | Yrd Mat Min Sub Traps Triggered 1 | . . . 1 Indirectly . | . . . . Trap Hack Attempts . | . . . . Triggered . | . . . . Disarmed . | . . . . Reprogrammed . | . . . . Reused . | . . . . Traps Extracted . | . . . . Installed . | . . . . Triggered . | . . . . Machines | -11 -10 -10 -10 ---------- Run | Yrd Mat Min Sub Machines Disabled . | . . . . Max in Single Turn . | . . . . Machines Repaired . | . . . . Machines Dismantled . | . . . . Machines Sabotaged . | . . . . Overloaded Fab Kills . | . . . . Hacking | -11 -10 -10 -10 --------- Run | Yrd Mat Min Sub Machines Accessed 1 | . 1 . . Terminals 1 | . 1 . . Fabricators . | . . . . Repair Stations . | . . . . Recycling Units . | . . . . Scanalyzers . | . . . . Garrison Access . | . . . . Total Hacks 2 | . 2 . . Successful 1 | . 1 . . Failed 1 | . 1 . . Catastrophic . | . . . . Database Lockouts . | . . . . Manual 2 | . 2 . . Terminals 2 | . 2 . . Fabricators . | . . . . Repair Stations . | . . . . Recycling Units . | . . . . Scanalyzers . | . . . . Garrison Access . | . . . . Terminal Hacks 1 | . 1 . . Robot Analysis 1 | . 1 . . Fabricator Hacks . | . . . . Repair Station Hacks . | . . . . Recycling Unit Hacks . | . . . . Scanalyzer . | . . . . Garrison Access Hacks . | . . . . Unauthorized Hacks . | . . . . Terminals . | . . . . Fabricators . | . . . . Repair Stations . | . . . . Recycling Units . | . . . . Scanalyzers . | . . . . Garrison Access . | . . . . Data Cores Recovered . | . . . . Used . | . . . . Hacking Detections 1 | . 1 . . Full Trace Events . | . . . . Feedback Events . | . . . . Feedback Blocked . | . . . . Robot Schematics Acquired . | . . . . Robots Built . | . . . . Authchips . | . . . . Time . | . . . . Total Robot Build Rating . | . . . . Part Schematics Acquired . | . . . . Parts Built . | . . . . Authchips . | . . . . Time . | . . . . Total Part Build Rating . | . . . . Parts Repaired . | . . . . Time . | . . . . Parts Recycled . | . . . . Recycled Matter . | . . . . Retrieved Matter . | . . . . Retrieved Components . | . . . . Parts Scanalyzed . | . . . . Part Schematics Acquired . | . . . . Parts Damaged . | . . . . Bothacking | -11 -10 -10 -10 ------------ Run | Yrd Mat Min Sub Used RIF Installer . | . . . . Robots Hacked . | . . . . Non-combat . | . . . . Combat . | . . . . Robot Hacks Applied . | . . . . Relay Couplers Released . | . . . . Fabnet Peak Effective % . | . . . . Robots Rewired . | . . . . Allies Hacked . | . . . . Hacks Repelled . | . . . . Allies | -11 -10 -10 -10 -------- Run | Yrd Mat Min Sub Total Allies . | . . . . Largest Group . | . . . . Highest-Rated Group . | . . . . Highest-Rated Ally . | . . . . Total Orders . | . . . . Ally Attacks . | . . . . Total Damage . | . . . . Kills . | . . . . Allies Corrupted . | . . . . Allies Melted . | . . . . Intel | -11 -10 -10 -10 ------- Run | Yrd Mat Min Sub Robot Analysis Total 1 | . 1 . . Derelict Logs Recovered 1 | . . 1 . Drone Launches . | . . . . Drone Recoveries . | . . . . Exploration | -11 -10 -10 -10 ------------- Run | Yrd Mat Min Sub Turns Passed 1764 | 93 212 1119 340 Spaces Moved 668 | 56 116 324 172 Core 1 | 1 . . . Treads 487 | . . 315 172 Legs . | . . . . Wheels 180 | 55 116 9 . Hover . | . . . . Flight . | . . . . Fastest Speed 50 | 50 80 95 160 Average Speed 138 | 79 82 158 160 Slowest Speed 160 | 80 95 160 160 Overloaded Moves . | . . . . Propulsion Burnouts . | . . . . Robots Hopped . | . . . . Cave-ins Triggered . | . . . . Exploration Rate (%) 29 | 4 24 75 13 Regions Visited 3 Branch Regions 2 Pre-discovered Areas 3 | . . 2 1 Known Exits Taken . | . . . . Unknown Exits Taken 3 | 1 1 1 . Scrap Searched 4 | . . 1 3 Spaces Dug . | . . . . Terrain Destroyed . | . . . . Melee . | . . . . Projectile . | . . . . AOE . | . . . . Terrain Rammed . | . . . . Walls Destroyed . | . . . . Machines Disabled . | . . . . Actions | -11 -10 -10 -10 --------- Run | Yrd Mat Min Sub Total 1351 | 79 174 879 219 Wait 561 | . 22 514 25 Move 665 | 55 115 323 172 Hop . | . . . . Pick Up 15 | 5 2 5 3 Fast Attach 13 | 7 1 2 3 Attach 5 | . . 2 3 Detach 2 | . . . 2 Swap 2 | . 1 1 . Drop 4 | . 1 2 1 Fire 84 | 12 32 30 10 Melee . | . . . . Ram . | . . . . Kick . | . . . . Crush . | . . . . Escape Stasis . | . . . . Rewire . | . . . . Trap . | . . . . Miscellaneous . | . . . . Route ------- -11/Scrapyard -10/Materials -10/Mines (discovered 2 exits: [*Mat] / [*Sub]) -10/Subcaves History --------- Turn | Location | Event 7 | -11/Scrapyard | Discovered new exit (range 15) 94 | -11/Scrapyard | Entered Materials 232 | -10/Materials | Discovered new exit (range 16) 306 | -10/Materials | Entered Mines 308 | -10/Mines | Build established: Mutant 745 | -10/Mines | Discovered new exit (range 14) 773 | -10/Mines | Learned location of Mines (-8) 922 | -10/Mines | Learned location of Storage (-8) 1422 | -10/Mines | Discovered new exit (range 3) 1425 | -10/Mines | Entered Subcaves 1706 | -10/Subcaves | Learned location of Zion (-6) 1706 | -10/Subcaves | Met a Zionite searching for "candidates" 1751 | -10/Subcaves | Core integrity fell below 50% 1761 | -10/Subcaves | Core integrity fell below 20% 1765 | -10/Subcaves | Destroyed by E9-PYZ(R) with Subdweller Beam Cannon Last Messages --------------- 01658_ Acquired Multitool. 01685_ Subatomizers dissect the Ion Engine. 01706_ AU-EBL(z): "Hey you! It's really dangerous down here, I feel that you could die at any moment. For your health and safety might I suggest a trip to Zion?" World map updated: -6/Zion. 01731_ AU-EBL(z) destroyed. 01735_ Subatomizers dissect the Mak. Power Source. 01735_ X4-UVT(z) destroyed. 01741_ Sub. Optics shoots sparks and powers down. 01745_ 2N-5MD(R) suffers critical hit (Destroy). 01747_ Subatomizers dissect the Mak. Power Source. 01753_ Lgt. Treads destroyed. 01759_ Subatomizers dissect the Mak. Power Source. 01761_ Sub. Laser destroyed. Map ----- +----------------------------------------------------+ | ???????????????????????????????????????????????? | | ???????????????????????????????????????????????? | | ???????????????????????????????????????????????? | | ???????????????????????????????????????????????? | | ???????????????????????????????????????????????? | | ???????????????????????????????????????????????? | | ???????????????????????????????????????????????? | | ???????????????????????????????????????????????? | | ???????????????????????????????????????????????? | | ???????????????????????????????????????????????? | | ???????????????????????????????????????????????? | | ???????????????????????????????????????????????? | | ???????????????????????????????????????????????? | | ???????????????????????????????????????????????? | | ???????????????#???????????????????????????????? | | ???????????????? ??????????????????????????????? | | ???????????????? ??????????????????????????????? | | ????????????????#"?????????????????????????????? | | ????????????????# ?????????????????????????????? | | ????????????????? ?????????##?????????????????? | | ?????????????????# ????????? #?????????????????? | | ?????????????????# ??????? #?????????????????? | | ?????????????????# ??????? ##????????????????? | | ????????????????## ?????? #????????????????? | | ???????????????##" ####?? #????????????????? | | ???????????????#"" #@### #????????????????? | | ???????????????# /R* #????????????????? | | ???????????????## ## R == ##???????????????? | | ???????????????????# ##%* #???????????????? | | ???????????????????###?## #???????????????? | | ???????????????????????## ##???????????????? | | ????????????????#####??# ## #????????????????? | | ????????????????# ##### ## ##???????????????? | | ????????????????# ### #???????????????? | | ???????????###??## ### #???????????????? | | ???????????# #### ## ##???????????????? | | ???????????#%"#*#" ### ###????????????????? | | ???????????#% #%&& ##?## ##?????????????????? | | ???????????#"&# #" #??# #?????????????????? | | ???????????##& "## #?## #?????????????????? | | ????????????###### ### #?????????????????? | | ????????????????## ## ###???????????????? | | ???????????????## ###?????????????? | | ??????????????## #?????????????? | | ??????????????# ### #?????????????? | | ??????????????## #?# #?????????????? | | ???????????????# ##?# ##?????????????? | | ???????????????# #??# # ###??????????????? | | ???????????????## ##### ### ####?????????????? | | ????????????????## ####### # ##????????????? | +----------------------------------------------------+ Best States ------------- Heat Dissipation 35 Energy Generation 10 Energy Capacity 250 Matter Stores 440 Matter Capacity 450 Sight Range 21 Terrain Scan Density 10 Armor Coverage 150 Evasion (%) 44 Recoil Reduction 2 Item Schematics ----------------- None Robot Schematics ------------------ None Fabricated ------------ Nothing Alien Tech Used ----------------- None Achievements -------------- None Challenges ------------ None Game ------ Seed ControlWarpBroadsword Manual? 0 Play Time 00:10:13 Cumulative 485.6 hours Start 2024.08.20 @ 20:37:24 End 2024.08.23 @ 11:45:35 Sessions 2 Manual Loads 0 Difficulty Rogue Special Mode None Game No. 185 Rogue 182 Adventurer 3 Explorer 0 Win Type - Total 7 Types 4/1/0/1/0/1/0/0/0 Lore% 74 Gallery% 87 Achievement% 87 Wizard Run 0 Options --------- Layout 1 ASCII 0 Keyboard 0 Movement Numpad Keybinds 0 Fullscreen 2 Font 24/Smallcaps Map View 50x35 Zoom Use 0% Tactical HUD 1 Map Filters NONE Filters NONE Steam 1 RUN: b620a729-dfc8-4f18-a168-6b8c8b80fdbc